[Event "RUS-ch Rapid Men 2018"]
[Site "Sochi"]
[Date "2018.10.05"]
[Round "3"]
[White "Iljiushenok, Ilia"]
[Black "Sadovsky, Artem"]
[Result "1-0"]
[ECO "B13"]
[WhiteElo "2539"]
[BlackElo "2408"]
[Annotator "ChessBase"]
[PlyCount "95"]
[EventDate "2018.10.05"]
[EventType "swiss"]
[EventCountry "RUS"]
[SourceTitle "playchess.com"]
[Source "ChessBase"]
[SourceQuality "1"]
[TimeControl "900+10"]

1. e4 {[%emt 0:00:00]} c6 {[%emt 0:00:00]} 2. d4 {[%emt 0:00:00]} d5 {[%emt 0:00:00]} 3. exd5 {[%emt 0:00:00]} cxd5 {[%emt 0:00:00]} 4. Bd3 {[%emt 0:00:00]} Nf6 {[%emt 0:00:07]} 5. h3 {[%emt 0:00:00]} Nc6 {[%emt 0:00:03]} 6. c3 {[%emt 0:00:00]} g6 {[%emt 0:00:32]} 7. Nf3 {[%emt 0:00:04]} Bg7 {[%emt 0:00:02]} 8. O-O {[%emt 0:00:08]} O-O {[%emt 0:00:05]} 9. Bf4 {[%emt 0:00:10]} Ne4 {[%emt 0:00:27]} 10. Re1 {[%emt 0:00:52]} f5 {[%emt 0:00:38]} 11. Qc1 {[%emt 0:01:53]} Re8 {[%emt 0:01:03]} 12. Nbd2 {[%emt 0:01:33]} Qb6 {[%emt 0:01:51]} 13. Re2 {[%emt 0:00:41]} Bd7 {[%emt 0:00:59]} 14. Nb3 {[%emt 0:00:57]} Rac8 {[%emt 0:00:59]} 15. Qe3 {[%emt 0:00:02]} Na5 {[%emt 0:02:38]} 16. Nxa5 {[%emt 0:00:20]} Qxa5 {[%emt 0:00:04]} 17. a4 {[%emt 0:03:50]} Red8 {[%emt 0:04:08]} 18. Ne5 {[%emt 0:00:41]} Bf6 {[%emt 0:01:05]} 19. f3 {[%emt 0:02:14]} Nxc3 {[%emt 0:02:20]} 20. bxc3 {[%emt 0:00:29]} Qxc3 {[%emt 0:00:02]} 21. Ree1 {[%emt 0:00:25]} Be8 {[%emt 0:00:28]} 22. g4 {[%emt 0:01:44]} Kh8 {[%emt 0:00:16]} 23. gxf5 {[%emt 0:00:33]} g5 {[%emt 0:00:03]} 24. Bg3 {[%emt 0:00:24]} Bh5 {[%emt 0:00:20]} 25. a5 {[%emt 0:00:04]} Kg7 {[%emt 0:00:42]} 26. Rec1 {[%emt 0:00:36]} Qb4 {[%emt 0:00:08]} 27. Rcb1 {[%emt 0:00:02]} Qc3 {[%emt 0:00:06]} 28. Be1 {[%emt 0:00:36]} Qc7 {[%emt 0:00:07]} 29. Rb2 {[%emt 0:00:06]} b6 {[%emt 0:00:24]} 30. axb6 {[%emt 0:00:11]} axb6 {[%emt 0:00:01]} 31. Rab1 {[%emt 0:00:01]} Rd6 {[%emt 0:00:08]} 32. Ng4 {[%emt 0:00:16]} Bxg4 {[%emt 0:00:16]} 33. hxg4 {[%emt 0:00:01]} Rc6 {[%emt 0:00:12]} 34. Kg2 {[%emt 0:00:02]} Qa7 {[%emt 0:00:13]} 35. Bg3 {[%emt 0:00:16]} Qa3 {[%emt 0:00:09]} 36. Rb3 {[%emt 0:00:19]} Qa2+ {[%emt 0:00:04]} 37. R1b2 {[%emt 0:00:02]} Qa1 {[%emt 0:00:15]} 38. Be5 {[%emt 0:00:01]} Kf7 {[%emt 0:00:13]} 39. Bxf6 {[%emt 0:00:14]} Rxf6 {[%emt 0:00:06]} 40. Rxb6 {[%emt 0:00:35]} Rcc6 {[%emt 0:00:01]} 41. Rxc6 {[%emt 0:00:06]} Qxb2+ {[%emt 0:00:04]} 42. Rc2 {[%emt 0:00:01]} Qb3 {[%emt 0:00:05]} 43. Re2 {[%emt 0:00:03]} Qa3 {[%emt 0:00:06]} 44. Bb5 {[%emt 0:00:05]} Qd6 {[%emt 0:00:07]} 45. Qe5 {[%emt 0:00:16]} h5 {[%emt 0:00:22]} 46. Qxd6 {[%emt 0:00:05]} Rxd6 {[%emt 0:00:03]} 47. gxh5 {[%emt 0:00:04]} Kf6 {[%emt 0:00:09]} 48. Re6+ {[%emt 0:00:01]} 1-0

[Event "RUS-ch Rapid Men 2018"]
[Site "Sochi"]
[Date "2018.10.05"]
[Round "3"]
[White "Potapov, Pavel"]
[Black "Bocharov, Ivan"]
[Result "0-1"]
[ECO "C77"]
[WhiteElo "2515"]
[BlackElo "2563"]
[Annotator "ChessBase"]
[PlyCount "62"]
[EventDate "2018.10.05"]
[EventType "swiss"]
[EventCountry "RUS"]
[SourceTitle "playchess.com"]
[Source "ChessBase"]
[SourceQuality "1"]
[TimeControl "900+10"]

1. e4 {[%emt 0:00:00]} e5 {[%emt 0:00:00]} 2. Nf3 {[%emt 0:00:01]} Nc6 {[%emt 0:00:00]} 3. Bb5 {[%emt 0:00:06]} a6 {[%emt 0:00:00]} 4. Ba4 {[%emt 0:00:03]} Nf6 {[%emt 0:00:00]} 5. d3 {[%emt 0:00:08]} d6 {[%emt 0:00:05]} 6. c4 {[%emt 0:00:39]} Be7 {[%emt 0:00:14]} 7. Nc3 {[%emt 0:00:08]} O-O {[%emt 0:00:07]} 8. h3 {[%emt 0:01:00]} Nd4 {[%emt 0:01:07]} 9. Nxd4 {[%emt 0:00:14]} exd4 {[%emt 0:00:01]} 10. Ne2 {[%emt 0:00:03]} c5 {[%emt 0:00:19]} 11. O-O {[%emt 0:00:04]} Rb8 {[%emt 0:00:47]} 12. Bc2 {[%emt 0:00:34]} b5 {[%emt 0:00:07]} 13. b3 {[%emt 0:00:10]} Ne8 {[%emt 0:00:46]} 14. Ng3 {[%emt 0:00:20]} Bh4 15. a4 {[%emt 0:01:59]} bxc4 {[%emt 0:03:15]} 16. bxc4 {[%emt 0:00:02]} Nc7 {[%emt 0:02:29]} 17. Bd2 {[%emt 0:00:14]} g6 {[%emt 0:01:33]} 18. Rb1 {[%emt 0:00:54]} Bd7 {[%emt 0:00:00]} 19. Bh6 {[%emt 0:02:30]} Re8 {[%emt 0:00:02]} 20. Qd2 {[%emt 0:00:02]} Qf6 {[%emt 0:01:11]} 21. Qa5 {[%emt 0:01:35]} Rxb1 {[%emt 0:02:01]} 22. Rxb1 {[%emt 0:00:02]} Ne6 {[%emt 0:00:02]} 23. Bd2 {[%emt 0:01:29]} Nf4 {[%emt 0:00:50]} 24. Bxf4 {[%emt 0:01:47]} Qxf4 {[%emt 0:00:01]} 25. Nh1 {[%emt 0:01:27]} Re5 {[%emt 0:02:34]} 26. Bd1 {[%emt 0:00:58]} Kg7 {[%emt 0:01:04]} 27. Qc7 {[%emt 0:01:05]} Bxh3 {[%emt 0:00:12]} 28. gxh3 {[%emt 0:00:50]} Rg5+ {[%emt 0:00:01]} 29. Kf1 {[%emt 0:00:02]} Qh2 {[%emt 0:00:01]} 30. Rb7 {[%emt 0:00:11]} Rg1+ {[%emt 0:00:07]} 31. Ke2 {[%emt 0:00:06]} Qf4 {[%emt 0:00:01]} 0-1

[Event "RUS-ch Rapid Men 2018"]
[Site "Sochi"]
[Date "2018.10.05"]
[Round "3"]
[White "Demidov, Mikhail"]
[Black "Murzin, Volodar"]
[Result "1/2-1/2"]
[ECO "A45"]
[WhiteElo "2514"]
[BlackElo "2340"]
[Annotator "ChessBase"]
[PlyCount "77"]
[EventDate "2018.10.05"]
[EventType "swiss"]
[EventCountry "RUS"]
[SourceTitle "playchess.com"]
[Source "ChessBase"]
[SourceQuality "1"]
[TimeControl "900+10"]

1. d4 {[%emt 0:00:00]} Nf6 {[%emt 0:00:00]} 2. Bg5 {[%emt 0:00:01]} g6 {[%emt 0:00:00]} 3. Bxf6 {[%emt 0:00:01]} exf6 {[%emt 0:00:00]} 4. e3 {[%emt 0:00:02]} d5 {[%emt 0:00:00]} 5. g3 {[%emt 0:00:02]} c6 {[%emt 0:00:03]} 6. Bg2 {[%emt 0:00:02]} Bd6 {[%emt 0:00:03]} 7. Ne2 {[%emt 0:00:01]} f5 {[%emt 0:00:03]} 8. b3 {[%emt 0:00:11]} Nd7 {[%emt 0:00:05]} 9. c4 {[%emt 0:00:02]} Nf6 {[%emt 0:00:18]} 10. Nbc3 {[%emt 0:00:04]} Be6 {[%emt 0:00:10]} 11. Qd3 {[%emt 0:00:04]} Ne4 {[%emt 0:00:20]} 12. O-O {[%emt 0:00:46]} O-O {[%emt 0:00:26]} 13. Rfc1 {[%emt 0:00:33]} Rc8 {[%emt 0:00:23]} 14. Rab1 {[%emt 0:03:57]} Bb4 {[%emt 0:02:46]} 15. Nxe4 {[%emt 0:04:23]} fxe4 {[%emt 0:00:09]} 16. Qd1 {[%emt 0:00:01]} Qd7 {[%emt 0:01:00]} 17. Qf1 {[%emt 0:00:27]} f5 {[%emt 0:00:44]} 18. Rc2 {[%emt 0:00:12]} g5 {[%emt 0:00:29]} 19. Rbc1 {[%emt 0:01:48]} Ba3 {[%emt 0:00:22]} 20. Rb1 {[%emt 0:00:01]} Bd6 {[%emt 0:00:10]} 21. cxd5 {[%emt 0:00:29]} cxd5 {[%emt 0:00:38]} 22. Rxc8 {[%emt 0:00:14]} Rxc8 {[%emt 0:00:01]} 23. Rc1 {[%emt 0:00:01]} Ba3 {[%emt 0:02:27]} 24. Rxc8+ {[%emt 0:00:20]} Qxc8 {[%emt 0:00:01]} 25. Qd1 {[%emt 0:00:01]} Kf7 {[%emt 0:00:39]} 26. Qd2 {[%emt 0:00:05]} a6 {[%emt 0:00:38]} 27. Bf1 {[%emt 0:00:17]} Qc6 {[%emt 0:01:18]} 28. Qa5 {[%emt 0:00:12]} Be7 {[%emt 0:00:14]} 29. Qd2 {[%emt 0:00:07]} Ke8 {[%emt 0:01:27]} 30. Qb2 {[%emt 0:00:05]} a5 {[%emt 0:00:54]} 31. Nc3 {[%emt 0:00:08]} Kf7 {[%emt 0:00:18]} 32. Nb5 {[%emt 0:02:12]} h5 {[%emt 0:01:17]} 33. a3 {[%emt 0:00:30]} Kg6 {[%emt 0:00:25]} 34. Qd2 {[%emt 0:00:24]} b6 {[%emt 0:00:06]} 35. Na7 {[%emt 0:00:36]} Qd7 {[%emt 0:00:09]} 36. Nb5 {[%emt 0:00:01]} Qc6 {[%emt 0:00:05]} 37. Na7 {[%emt 0:00:02]} Qd7 {[%emt 0:00:13]} 38. Nb5 {[%emt 0:00:01]} Qc6 {[%emt 0:00:04]} 39. Na7 {[%emt 0:00:07]} 1/2-1/2

[Event "RUS-ch Rapid Men 2018"]
[Site "Sochi"]
[Date "2018.10.05"]
[Round "3"]
[White "Triapishko, Alexandr"]
[Black "Alekseev, Evgeny"]
[Result "1/2-1/2"]
[ECO "C84"]
[WhiteElo "2508"]
[BlackElo "2620"]
[Annotator "RC"]
[PlyCount "86"]
[EventDate "2018.10.05"]
[EventType "swiss"]
[EventCountry "RUS"]
[SourceTitle "playchess.com"]
[Source "ChessBase"]
[SourceQuality "1"]
[TimeControl "900+10"]

1. e4 {[%emt 0:00:00]} e5 {[%emt 0:00:00]} 2. Nf3 {[%emt 0:00:00]} Nc6 {[%emt 0:00:00]} 3. Bb5 {[%emt 0:00:07]} a6 {[%emt 0:00:00]} 4. Ba4 {[%emt 0:00:02]} Nf6 {[%emt 0:00:05]} 5. O-O {[%emt 0:00:03]} Be7 {[%emt 0:00:05]} 6. d3 {[%emt 0:00:05]} d6 {[%emt 0:00:10]} 7. c3 {[%emt 0:00:07]} O-O {[%emt 0:00:06]} 8. Nbd2 {[%emt 0:00:03]} Re8 {[%emt 0:00:15]} 9. Re1 {[%emt 0:00:11]} Bf8 {[%emt 0:00:03]} 10. Nf1 {[%emt 0:00:08]} b5 {[%emt 0:00:16]} 11. Bc2 {[%emt 0:00:22]} Nb8 {[%emt 0:00:16]} 12. a4 {[%emt 0:02:46]} Bb7 {[%emt 0:00:02]} 13. Bg5 {[%emt 0:00:49]} Nbd7 {[%emt 0:00:37]} 14. Ne3 {[%emt 0:00:44]} h6 {[%emt 0:01:10]} 15. Bh4 {[%emt 0:00:08]} Qb8 {[%emt 0:02:52]} 16. b4 {[%emt 0:03:29]} c6 {[%emt 0:00:39]} 17. Bb3 {[%emt 0:00:34]} Qc7 {[%emt 0:00:12]} 18. Qc2 {[%emt 0:01:04]} d5 {[%emt 0:03:22]} 19. axb5 {[%emt 0:05:49]} axb5 {[%emt 0:00:18]} 20. Rxa8 {[%emt 0:00:05]} Rxa8 {[%emt 0:00:22]} 21. exd5 {[%emt 0:01:07]} cxd5 {[%emt 0:01:13]} 22. Bg3 {[%emt 0:00:23]} Rc8 {[%emt 0:01:19]} 23. Rc1 {[%emt 0:00:03]} Bd6 {[%emt 0:01:51]} 24. Nf5 {[%emt 0:00:28]} Nh5 {[%emt 0:00:06]} 25. Nxd6 {[%emt 0:00:19]} Qxd6 {[%emt 0:00:02]} 26. d4 {[%emt 0:00:12]} Nxg3 {[%emt 0:00:22]} 27. dxe5 {[%emt 0:00:05]} Nxe5 {[%emt 0:00:12]} 28. hxg3 {[%emt 0:00:05]} Nxf3+ {[%emt 0:00:16]} 29. gxf3 {[%emt 0:00:01]} Qf6 {[%emt 0:01:42]} 30. Qd3 {[%emt 0:00:25]} d4 {[%emt 0:00:02]} 31. f4 {[%emt 0:00:13]} Qc6 {[%emt 0:00:36]} 32. f3 {[%emt 0:00:03]} dxc3 {[%emt 0:00:13]} 33. Kf2 {[%emt 0:00:10]} Qb6+ {[%emt 0:01:08]} 34. Kg2 {[%emt 0:00:08]} Qc6 {[%emt 0:00:17]} 35. Kf2 {[%emt 0:00:01]} Qb6+ {[%emt 0:00:03]} 36. Kg2 {[%emt 0:00:02]} Qc7 {[%emt 0:00:06]} 37. Kf2 {[%emt 0:00:19]} Qc6 {[%emt 0:00:14]} 38. Rc2 {[%emt 0:00:26]} g6 {[%emt 0:00:20]} 39. g4 {[%emt 0:00:10]} Kg7 {[%emt 0:00:04]} 40. Kg3 {[%emt 0:00:08]} Qb6 {[%emt 0:00:05]} 41. Rxc3 {[%emt 0:00:14]} Qg1+ 42. Kh3 Qh1+ 43. Kg3 Qe1+ 1/2-1/2

[Event "RUS-ch Rapid Men 2018"]
[Site "Sochi"]
[Date "2018.10.05"]
[Round "3"]
[White "Moiseenko, Vadim"]
[Black "Miroshnichenko, Pavel"]
[Result "1-0"]
[ECO "A25"]
[WhiteElo "2492"]
[BlackElo "2275"]
[Annotator "ChessBase"]
[PlyCount "69"]
[EventDate "2018.10.05"]
[EventType "swiss"]
[EventCountry "RUS"]
[SourceTitle "playchess.com"]
[Source "ChessBase"]
[SourceQuality "1"]
[TimeControl "900+10"]

1. g3 {[%emt 0:00:00]} e5 {[%emt 0:00:00]} 2. c4 {[%emt 0:00:00]} Nc6 {[%emt 0:00:01]} 3. Bg2 {[%emt 0:00:00]} g6 {[%emt 0:00:02]} 4. Nc3 {[%emt 0:00:01]} Bg7 {[%emt 0:00:01]} 5. d3 {[%emt 0:00:02]} f5 {[%emt 0:00:01]} 6. e3 {[%emt 0:00:02]} Nf6 {[%emt 0:00:04]} 7. Nge2 {[%emt 0:00:02]} O-O {[%emt 0:00:03]} 8. O-O {[%emt 0:00:12]} d6 {[%emt 0:00:11]} 9. Rb1 {[%emt 0:00:09]} a5 {[%emt 0:00:16]} 10. a3 {[%emt 0:00:05]} Ne7 {[%emt 0:00:38]} 11. b4 {[%emt 0:00:19]} axb4 {[%emt 0:00:01]} 12. axb4 {[%emt 0:00:02]} c6 {[%emt 0:00:13]} 13. d4 {[%emt 0:01:04]} Be6 {[%emt 0:00:50]} 14. c5 {[%emt 0:00:23]} Bc4 {[%emt 0:01:26]} 15. cxd6 {[%emt 0:01:05]} Qxd6 {[%emt 0:00:03]} 16. dxe5 {[%emt 0:00:11]} Qxe5 {[%emt 0:00:02]} 17. Bb2 {[%emt 0:00:10]} Rfd8 {[%emt 0:01:06]} 18. Qc1 {[%emt 0:00:17]} Qe6 {[%emt 0:01:41]} 19. Rd1 {[%emt 0:00:37]} Qf7 {[%emt 0:01:00]} 20. h3 {[%emt 0:01:10]} Ned5 {[%emt 0:03:01]} 21. Nxd5 {[%emt 0:00:42]} Bxd5 {[%emt 0:00:02]} 22. Bxd5 {[%emt 0:00:53]} Rxd5 {[%emt 0:00:17]} 23. Rxd5 {[%emt 0:00:04]} Nxd5 {[%emt 0:00:41]} 24. b5 {[%emt 0:00:30]} Ra2 {[%emt 0:02:23]} 25. Bxg7 {[%emt 0:01:24]} Kxg7 {[%emt 0:00:50]} 26. bxc6 {[%emt 0:00:50]} bxc6 {[%emt 0:00:02]} 27. Nd4 {[%emt 0:00:55]} Ra7 {[%emt 0:01:56]} 28. Qxc6 {[%emt 0:00:25]} Re7 {[%emt 0:00:14]} 29. Qd6 {[%emt 0:02:40]} Nf6 {[%emt 0:01:28]} 30. Rb6 {[%emt 0:00:05]} h6 {[%emt 0:00:55]} 31. Ne6+ {[%emt 0:00:10]} Kh7 {[%emt 0:00:02]} 32. Nf4 {[%emt 0:00:06]} Kg7 {[%emt 0:00:34]} 33. Ne6+ {[%emt 0:00:29]} Kh7 {[%emt 0:00:02]} 34. Nd8 {[%emt 0:00:04]} Qd5 {[%emt 0:00:22]} 35. Qxe7+ {[%emt 0:00:07]} 1-0

[Event "RUS-ch Rapid Men 2018"]
[Site "Sochi"]
[Date "2018.10.05"]
[Round "3"]
[White "Gutenev, Alexander"]
[Black "Dudin, Gleb"]
[Result "1-0"]
[ECO "C11"]
[WhiteElo "2456"]
[BlackElo "2178"]
[Annotator "ChessBase"]
[PlyCount "69"]
[EventDate "2018.10.05"]
[EventType "swiss"]
[EventCountry "RUS"]
[SourceTitle "playchess.com"]
[Source "ChessBase"]
[SourceQuality "1"]
[TimeControl "900+10"]

1. e4 {[%emt 0:00:18]} e6 {[%emt 0:00:00]} 2. d4 {[%emt 0:00:01]} d5 {[%emt 0:00:00]} 3. Nc3 {[%emt 0:00:02]} Nf6 {[%emt 0:00:00]} 4. e5 {[%emt 0:00:01]} Nfd7 {[%emt 0:00:00]} 5. f4 {[%emt 0:00:01]} c5 {[%emt 0:00:00]} 6. Nf3 {[%emt 0:00:01]} Nc6 {[%emt 0:00:00]} 7. Be3 {[%emt 0:00:01]} a6 {[%emt 0:00:05]} 8. Qd2 {[%emt 0:00:02]} b5 {[%emt 0:00:07]} 9. Be2 {[%emt 0:00:02]} Qb6 {[%emt 0:00:46]} 10. Nd1 {[%emt 0:00:09]} cxd4 {[%emt 0:03:12]} 11. Nxd4 {[%emt 0:00:02]} Bc5 {[%emt 0:00:08]} 12. c3 {[%emt 0:00:01]} b4 {[%emt 0:00:11]} 13. O-O {[%emt 0:00:18]} a5 {[%emt 0:00:29]} 14. Rc1 {[%emt 0:01:45]} bxc3 {[%emt 0:02:57]} 15. bxc3 {[%emt 0:00:01]} O-O {[%emt 0:00:21]} 16. Nb2 {[%emt 0:01:05]} a4 {[%emt 0:03:40]} 17. Rb1 {[%emt 0:00:02]} Qa7 {[%emt 0:00:02]} 18. Bf2 {[%emt 0:01:05]} Nxd4 {[%emt 0:00:11]} 19. cxd4 {[%emt 0:00:02]} Be7 {[%emt 0:00:18]} 20. Nd3 {[%emt 0:01:13]} Ba6 {[%emt 0:00:55]} 21. f5 {[%emt 0:00:07]} exf5 {[%emt 0:00:29]} 22. Nf4 {[%emt 0:00:02]} Bg5 {[%emt 0:01:13]} 23. Be3 {[%emt 0:01:11]} Bxf4 {[%emt 0:01:20]} 24. Rxf4 {[%emt 0:00:27]} Bxe2 {[%emt 0:00:22]} 25. Qxe2 {[%emt 0:00:02]} g6 {[%emt 0:00:24]} 26. Qf3 {[%emt 0:01:19]} Qa5 {[%emt 0:01:47]} 27. Qg3 {[%emt 0:01:12]} Rfb8 {[%emt 0:00:22]} 28. Rbf1 {[%emt 0:00:11]} Kf8 {[%emt 0:00:09]} 29. Rh4 {[%emt 0:00:14]} h5 {[%emt 0:00:08]} 30. e6 {[%emt 0:00:22]} Nf6 {[%emt 0:00:08]} 31. Qe5 {[%emt 0:00:32]} Ng4 {[%emt 0:00:12]} 32. Rxg4 {[%emt 0:00:01]} hxg4 {[%emt 0:00:06]} 33. Bh6+ {[%emt 0:00:08]} Ke8 {[%emt 0:00:15]} 34. Bg5 {[%emt 0:00:22]} fxe6 {[%emt 0:00:11]} 35. Qxe6+ {[%emt 0:00:03]} 1-0

[Event "RUS-ch Rapid Men 2018"]
[Site "Sochi"]
[Date "2018.10.05"]
[Round "3"]
[White "Lugovskoy, Maxim"]
[Black "Savchenko, Boris"]
[Result "0-1"]
[ECO "A45"]
[WhiteElo "2428"]
[BlackElo "2562"]
[Annotator "ChessBase"]
[PlyCount "88"]
[EventDate "2018.10.05"]
[EventType "swiss"]
[EventCountry "RUS"]
[SourceTitle "playchess.com"]
[Source "ChessBase"]
[SourceQuality "1"]
[TimeControl "900+10"]

1. d4 {[%emt 0:00:00]} Nf6 {[%emt 0:00:00]} 2. Nc3 {[%emt 0:00:00]} d5 {[%emt 0:00:00]} 3. Bf4 {[%emt 0:00:00]} a6 {[%emt 0:00:00]} 4. Nf3 {[%emt 0:00:00]} e6 {[%emt 0:00:13]} 5. e3 {[%emt 0:00:01]} c5 {[%emt 0:00:02]} 6. dxc5 {[%emt 0:00:01]} Bxc5 {[%emt 0:00:05]} 7. Bd3 {[%emt 0:00:02]} Bb4 {[%emt 0:00:34]} 8. O-O {[%emt 0:00:14]} O-O {[%emt 0:00:12]} 9. a3 {[%emt 0:00:42]} Bxc3 {[%emt 0:00:18]} 10. bxc3 {[%emt 0:00:01]} Nbd7 {[%emt 0:00:07]} 11. c4 {[%emt 0:00:26]} dxc4 {[%emt 0:00:30]} 12. Bxc4 {[%emt 0:00:02]} b5 {[%emt 0:00:02]} 13. Be2 {[%emt 0:00:16]} Nd5 {[%emt 0:00:10]} 14. Bd6 {[%emt 0:01:11]} Re8 {[%emt 0:02:27]} 15. c4 {[%emt 0:01:25]} Nc3 {[%emt 0:00:56]} 16. Qc2 {[%emt 0:00:18]} Nxe2+ {[%emt 0:00:04]} 17. Qxe2 {[%emt 0:00:02]} Nb6 {[%emt 0:00:32]} 18. c5 {[%emt 0:00:37]} Bb7 {[%emt 0:02:14]} 19. Rfd1 {[%emt 0:01:09]} Na4 {[%emt 0:01:54]} 20. Ne5 {[%emt 0:00:27]} Nc3 {[%emt 0:00:17]} 21. Qg4 {[%emt 0:00:41]} Nxd1 {[%emt 0:03:17]} 22. Rxd1 {[%emt 0:00:02]} Rc8 {[%emt 0:00:07]} 23. Nxf7 {[%emt 0:01:28]} Qf6 {[%emt 0:00:48]} 24. Ne5 {[%emt 0:00:22]} Red8 {[%emt 0:00:39]} 25. f4 {[%emt 0:03:10]} Qf5 {[%emt 0:01:13]} 26. Qxf5 {[%emt 0:00:20]} exf5 {[%emt 0:00:03]} 27. Rd4 {[%emt 0:00:02]} a5 {[%emt 0:00:13]} 28. Kf2 {[%emt 0:00:12]} g6 {[%emt 0:00:02]} 29. h3 {[%emt 0:00:07]} Kg7 {[%emt 0:00:03]} 30. g4 {[%emt 0:00:08]} Kf6 {[%emt 0:00:01]} 31. h4 {[%emt 0:01:46]} Ke6 {[%emt 0:00:22]} 32. Ke2 {[%emt 0:00:06]} Be4 {[%emt 0:01:29]} 33. h5 {[%emt 0:00:35]} Rg8 {[%emt 0:00:31]} 34. hxg6 {[%emt 0:00:34]} hxg6 {[%emt 0:00:02]} 35. g5 {[%emt 0:00:41]} Rh8 {[%emt 0:00:02]} 36. Nxg6 {[%emt 0:00:26]} Rh2+ {[%emt 0:00:03]} 37. Kd1 {[%emt 0:00:24]} Rg8 {[%emt 0:00:50]} 38. Nf8+ {[%emt 0:01:46]} Kf7 {[%emt 0:00:09]} 39. g6+ {[%emt 0:00:02]} Ke8 {[%emt 0:00:46]} 40. Rxe4+ {[%emt 0:01:29]} fxe4 {[%emt 0:00:02]} 41. c6 {[%emt 0:00:01]} Rgh8 {[%emt 0:00:17]} 42. g7 {[%emt 0:00:14]} Rh1+ {[%emt 0:00:03]} 43. Kd2 {[%emt 0:00:01]} R8h2+ {[%emt 0:00:01]} 44. Kc3 {[%emt 0:00:01]} Rd1 {[%emt 0:00:14]} 0-1

[Event "RUS-ch Rapid Men 2018"]
[Site "Sochi"]
[Date "2018.10.05"]
[Round "3"]
[White "Pogromsky, Mikhail"]
[Black "Yuffa, Daniil"]
[Result "0-1"]
[ECO "A05"]
[WhiteElo "2415"]
[BlackElo "2563"]
[Annotator "ChessBase"]
[PlyCount "72"]
[EventDate "2018.10.05"]
[EventType "swiss"]
[EventCountry "RUS"]
[SourceTitle "playchess.com"]
[Source "ChessBase"]
[SourceQuality "1"]
[TimeControl "900+10"]

1. Nf3 {[%emt 0:00:00]} Nf6 {[%emt 0:00:00]} 2. c4 {[%emt 0:00:00]} g6 {[%emt 0:00:06]} 3. Nc3 {[%emt 0:00:00]} Bg7 {[%emt 0:00:01]} 4. d4 {[%emt 0:00:06]} O-O {[%emt 0:00:03]} 5. h3 {[%emt 0:00:03]} d5 {[%emt 0:00:52]} 6. cxd5 {[%emt 0:00:03]} Nxd5 {[%emt 0:00:02]} 7. e4 {[%emt 0:00:01]} Nxc3 {[%emt 0:00:20]} 8. bxc3 {[%emt 0:00:03]} c5 {[%emt 0:00:07]} 9. Be2 {[%emt 0:00:02]} Nc6 {[%emt 0:00:27]} 10. Be3 {[%emt 0:00:04]} cxd4 {[%emt 0:00:08]} 11. cxd4 {[%emt 0:00:02]} Qa5+ {[%emt 0:00:08]} 12. Bd2 {[%emt 0:00:02]} Qa3 {[%emt 0:00:58]} 13. d5 {[%emt 0:00:06]} Ne5 {[%emt 0:05:08]} 14. Nxe5 {[%emt 0:01:42]} Bxe5 {[%emt 0:00:02]} 15. Rb1 {[%emt 0:00:10]} Qxa2 {[%emt 0:00:33]} 16. O-O {[%emt 0:00:51]} a5 {[%emt 0:01:51]} 17. Bh6 {[%emt 0:02:37]} Rd8 {[%emt 0:01:53]} 18. f4 {[%emt 0:01:11]} Bf6 {[%emt 0:00:28]} 19. Rc1 {[%emt 0:00:57]} a4 {[%emt 0:01:55]} 20. Bc4 {[%emt 0:01:35]} Qb2 {[%emt 0:00:50]} 21. e5 {[%emt 0:00:06]} Bh4 {[%emt 0:00:34]} 22. Rb1 {[%emt 0:06:58]} Qc3 {[%emt 0:00:22]} 23. Ba2 {[%emt 0:00:18]} Bxh3 {[%emt 0:00:55]} 24. Qf3 {[%emt 0:00:52]} Qc5+ {[%emt 0:00:46]} 25. Kh2 {[%emt 0:00:20]} Bf5 {[%emt 0:00:13]} 26. Rxb7 {[%emt 0:00:45]} Qc2 {[%emt 0:00:01]} 27. Bb1 {[%emt 0:00:07]} Qc8 {[%emt 0:00:13]} 28. d6 {[%emt 0:00:08]} exd6 {[%emt 0:00:16]} 29. Ba2 {[%emt 0:00:23]} Be6 {[%emt 0:00:16]} 30. f5 {[%emt 0:00:03]} Bxa2 {[%emt 0:00:12]} 31. fxg6 {[%emt 0:00:08]} hxg6 {[%emt 0:00:17]} 32. Rxf7 {[%emt 0:00:03]} Qe6 {[%emt 0:00:07]} 33. Rf6 {[%emt 0:00:27]} Qxe5+ {[%emt 0:00:03]} 34. Rf4 {[%emt 0:00:02]} Rf8 {[%emt 0:00:19]} 35. Bxf8 {[%emt 0:00:04]} Rxf8 {[%emt 0:00:01]} 36. Qg4 {[%emt 0:00:07]} Bg5 {[%emt 0:00:06]} 0-1